Cogmind - Beta 16 @@@ ROGUE MODE // 2025.11.18 @ 18:35:11 Player: Mozco Result: Escaped! Performance ------------- Evolutions (9) 4500 Regions Visited (20) 4000 Robots Destroyed (383) 1915 Value Destroyed (20177) 20177 Prototype IDs (74) 1480 Alien Tech Used (4) 800 Bonus (16569) 16569 TOTAL SCORE: 49441 Bonus ------- Pacifist 200 High Alert Combat Kills 4108 Follower Combat Kills 2421 Network Hubs Disabled 400 Met Zhirov 300 Built Enhanced Grunts 300 Met R17 at Cetus 500 Met R17 at Research 2000 Scanned by Researcher 500 Acquired SGEMP 2000 Delivered SGEMP 2000 Win 3000 Friendly Fire -1160 Cogmind --------- Core Integrity 1561/1600 Matter 295/300 Energy 287/325 System Corruption 0% Temperature Cool (9) Movement Walking (111) Location To Epsilon Eridani Parts ------- > --- POWER (2) -------- Reinforced Antimatter Reactor Matter Drive > --- PROPULSION (6) --- Biometal Leg Improved Thunder Leg Enhanced Biometal Leg Enhanced Biometal Leg Centrium Leg High-density Centrium Leg > --- UTILITY (14) ----- High-capacity Storage Unit Advanced Signal Interpreter Advanced Target Analyzer Core Analyzer Advanced Powered Armor Heavy Regenerative Plating SHELL Armor Experimental EM Shield Experimental Hacking Suite Advanced Corruption Screen > --- WEAPON (3) ------- Nanosword Nanosword Nanosword > --- INVENTORY (20) --- Reinforced Antimatter Reactor Quantum Reactor Myomer Leg Biometal Leg Biometal Leg Enhanced Biometal Leg Centrium Leg Advanced Sensor Array Centrium Medium Armor Plating Phase Armor Experimental Thermal Shield Phase Redirector Stealth Drone Bay (1/2) Subatomic Replicator Terrabomb Terrabomb Terrabomb Nanosword Peak State ------------ > --- POWER ------------ Reinforced Antimatter Reactor Matter Drive > --- PROPULSION ------- Myomer Leg Biometal Leg Biometal Leg Enhanced Biometal Leg Enhanced Biometal Leg High-density Centrium Leg > --- UTILITY ---------- High-capacity Storage Unit Advanced Signal Interpreter Advanced Target Analyzer Core Analyzer Heavy Regenerative Plating SHELL Armor Phase Armor Improved Force Field Experimental Hacking Suite Advanced Corruption Screen > --- WEAPON ----------- Nanosword Nanosword Nanosword > --- INVENTORY -------- Reinforced Antimatter Reactor Quantum Reactor Enhanced Biometal Leg Centrium Leg Centrium Medium Armor Plating Advanced Powered Armor Experimental Thermal Shield Experimental EM Shield Phase Redirector Stealth Drone Bay Subatomic Replicator Terrabomb Terrabomb Terrabomb Nanosword [Rating: 229] Favorites ----------- Power Quantum Reactor Engine Reinforced Deuterium Engine Power Core Nuclear Core Reactor Quantum Reactor Propulsion Enhanced Biometal Leg Leg Enhanced Biometal Leg Utility High-capacity Storage Unit Device Microactuators Storage High-capacity Storage Unit Processor Improved Signal Interpreter Hackware Experimental Hacking Suite Protection Centrium Medium Armor Plating Artifact Phase Armor Weapon Power Sword Impact Weapon Thunder Hammer Slashing Weapon Power Sword Build | -11 -10 -9 -8 -7 -6 -6 -6 -6 -6 -5 -5 -5 -5 -4 -4 -3 -3 -2 -2 -1 ------- Run | Yrd Mat Mat Mat Fac Fac Ext Cet Arc Hub Fac Upp Upp Zhi Pro Fac Res Tes Res Qua Acc Slots Evolved 18 | . . 2 2 2 2 . . . . 2 . . . . 2 2 . 2 . 2 Power 1 | . . . . . . . . . . . . . . . . . . . . 1 Propulsion 4 | . . . 2 . . . . . . . . . . . . . . 1 . 1 Utility 12 | . . 2 . 2 2 . . . . 2 . . . . 2 1 . 1 . . Weapon 1 | . . . . . . . . . . . . . . . . 1 . . . . Parts Attached 282 | 4 3 14 31 20 16 27 7 13 11 19 2 2 3 7 6 17 37 17 20 6 Power 26 | 1 1 2 3 2 1 3 1 2 . . . . 1 . 1 1 3 . 3 1 Engine 11 | 1 1 2 1 2 1 3 . . . . . . . . . . . . . . Core 4 | . . . 2 . . . 1 . . . . . . . 1 . . . . . Reactor 11 | . . . . . . . . 2 . . . . 1 . . 1 3 . 3 1 Propulsion 86 | 2 . 4 15 6 5 10 2 2 5 6 . 1 1 2 . 3 7 4 8 3 Treads . | . . . . . . . . . . . . . . . . . . . . . Leg 86 | 2 . 4 15 6 5 10 2 2 5 6 . 1 1 2 . 3 7 4 8 3 Wheel . | . . . . . . . . . . . . . . . . . . . . . Hover . | . . . . . . . . . . . . . . . . . . . . . Flight . | . . . . . . . . . . . . . . . . . . . . . Utility 147 | 1 1 7 11 11 10 10 4 8 6 9 2 1 1 5 4 12 24 10 8 2 Device 68 | . . 1 2 8 6 5 . 5 3 3 2 . 1 3 1 7 8 7 5 1 Storage 8 | 1 . 2 1 . . . . . . 1 . . . . 1 1 1 . . . Processor 26 | . 1 1 . 2 1 1 1 . 2 2 . 1 . 1 1 2 7 1 2 . Hackware 12 | . . . 2 . 2 . . 3 . 2 . . . . 1 . 1 1 . . Protection 32 | . . 3 6 1 1 4 3 . 1 1 . . . 1 . 2 7 1 . 1 Artifact 1 | . . . . . . . . . . . . . . . . . . . 1 . Weapon 23 | . 1 1 2 1 . 4 . 1 . 4 . . . . 1 1 3 3 1 . Energy Gun . | . . . . . . . . . . . . . . . . . . . . . Energy Cannon . | . . . . . . . . . . . . . . . . . . . . . Ballistic Gun . | . . . . . . . . . . . . . . . . . . . . . Ballistic Cannon . | . . . . . . . . . . . . . . . . . . . . . Launcher . | . . . . . . . . . . . . . . . . . . . . . Special Weapon . | . . . . . . . . . . . . . . . . . . . . . Impact Weapon 5 | . . 1 2 . . . . . . 1 . . . . . . 1 . . . Slashing Weapon 18 | . 1 . . 1 . 4 . 1 . 3 . . . . 1 1 2 3 1 . Piercing Weapon . | . . . . . . . . . . . . . . . . . . . . . Special Melee Weapon . | . . . . . . . . . . . . . . . . . . . . . Unidentified Prototypes 36 | . . . . 1 . . 2 . 6 1 . . 3 . . 6 12 2 2 1 Corrupted Parts 9 | . . 1 1 . . . . 3 2 . . . . 1 . . 1 . . . System Corruption 61 | . . 7 1 . . . . 20 8 . . . . 14 . . 11 . . . Parts Lost 78 | . . 3 13 1 5 14 2 1 . 3 6 2 . . . 5 7 4 10 2 Power 8 | . . 2 2 . 1 1 . . . . 1 . . . . . 1 . . . Propulsion 14 | . . . 5 . 1 3 1 . . . 1 2 . . . . . . 1 . Utility 51 | . . 1 5 1 3 9 1 . . 3 4 . . . . 5 6 3 8 2 Weapon 5 | . . . 1 . . 1 . 1 . . . . . . . . . 1 1 . Highest Loss Streak 9 | . . 1 7 1 2 9 2 1 . 2 3 1 . . . 2 3 2 3 1 To Critical Strikes 2 | . . . . . . . 1 . . . . . . . . 1 . . . . Average Backups 17 | 2 2 8 15 17 18 18 19 19 19 19 17 13 16 19 19 19 17 16 15 16 Power 1 | . 1 . . . 1 1 1 1 1 . . . . 1 1 1 . 1 1 1 Propulsion 4 | . . 4 1 2 3 6 5 4 5 6 6 3 3 4 4 4 3 3 3 4 Utility 8 | . . 2 11 11 10 7 8 10 9 7 7 6 7 8 9 10 10 8 7 5 Weapon 2 | . . . 2 3 3 3 4 3 3 4 4 4 4 3 3 2 2 2 2 1 Tool/Special . | . . . . . . . . . . . . . . . . . . . . . Unused Backups 44 | . . 2 4 4 . 1 . 2 . 2 . . . 1 . 5 12 1 1 9 Power 3 | . . . . . . 1 . . . . . . . . . . . . . 2 Propulsion 5 | . . 2 2 . . . . . . . . . . . . . 1 . . . Utility 16 | . . . 1 . . . . 1 . . . . . . . 5 6 . 1 2 Weapon 16 | . . . 1 4 . . . 1 . 2 . . . 1 . . 5 1 . 1 Tool/Special 4 | . . . . . . . . . . . . . . . . . . . . 4 Average Slot Usage (%) 93 | . 48 90 95 97 92 93 99 97 98 96 92 99 98 99 99 96 92 85 83 87 Engine 1 | . 8 10 2 3 5 5 4 . . . . . . . . . . . . . Reactor 2 | . . . . . . . . 4 6 4 4 5 5 5 3 2 4 4 4 7 Leg 23 | . 17 22 34 30 25 24 25 26 26 22 19 22 23 23 21 19 18 20 20 23 Device 15 | . . . 6 17 20 21 17 18 18 23 26 22 24 23 29 18 12 7 10 5 Storage 5 | . 8 18 9 7 6 6 6 6 6 5 5 5 5 5 5 4 4 4 4 4 Processor 14 | . 3 13 6 11 14 13 11 12 6 10 5 7 11 12 15 16 28 21 14 16 Hackware 1 | . . . 3 2 . . . 3 6 . . . . . . . . 3 4 4 Protection 10 | . . 8 8 3 4 5 16 8 12 13 15 20 13 14 11 17 8 8 11 14 Impact Weapon 4 | . . 5 15 8 6 2 . . . . 5 5 5 5 4 4 4 2 . . Slashing Weapon 8 | . 9 11 2 5 6 10 13 12 13 10 5 5 5 5 5 8 8 9 12 12 Peak Build Rating 229 | 4 6 14 38 51 62 69 81 82 105 115 109 118 115 122 125 148 182 201 208 229 Average Rating 110 | 1 3 10 28 47 56 61 66 76 90 104 100 112 110 112 119 133 165 193 191 221 On Entrance 88 | . . 6 14 36 51 54 58 81 82 104 98 97 112 115 107 119 142 176 198 202 Avg Prop Armor Cover (%) 4 | . . . . . . . . 5 . . . . . 3 . . . . . . Naked Turns 43 | . 43 . . . . . . . . . . . . . . . . . . . Heaviest Build 170 | 8 10 42 71 73 83 93 99 90 102 101 99 102 95 108 100 110 124 146 165 170 Greatest Support 178 | 20 20 20 80 78 75 80 73 78 108 108 100 110 110 115 115 115 120 150 146 178 Greatest Overweight (x) 2 | . . 2 1 . 1 1 1 1 1 1 1 . . 1 . . 1 1 1 . Average Overweight (x) . | . . . . . . . 1 . . . . . . . . . . . . . Largest Inventory Capacity 20 | 8 8 15 20 20 20 20 20 20 20 20 20 20 20 20 20 20 20 20 20 20 Average Capacity 19 | 5 7 11 17 20 20 20 20 20 20 20 20 20 20 20 20 20 20 20 20 20 Most Carried 20 | 5 5 15 20 20 20 20 20 20 20 20 20 17 20 20 20 20 20 20 20 20 Average Carried 18 | 1 2 8 17 19 19 19 19 19 19 19 17 13 16 19 18 19 19 19 19 18 Final Capacity 20 | 5 8 15 20 20 20 20 20 20 20 20 20 20 20 20 20 20 20 20 20 20 Final Carried 20 | 5 2 14 20 20 20 18 20 20 20 19 17 14 19 20 20 20 20 20 20 20 Class Distribution -------------------- 31% | Scavenger-Gladiator 26% | Gladiator 11% | Mutant 10% | Scavenger-Mutant 8% | Commander-Gladiator 4% | Assassin 3% | Infiltrator-Gladiator Dominant Class ---------------- Mutant | -10/Materials Mutant | -9/Materials Mutant | -8/Materials Assassin | -7/Factory Assassin | -6/Factory Commander-Gladiator | -6/Extension Commander-Gladiator | -6/Cetus Commander-Gladiator | -6/Archives Scavenger-Gladiator | -6/Hub_04(d) Scavenger-Gladiator | -5/Factory Scavenger-Gladiator | -5/Upper Caves Scavenger-Gladiator | -5/Upper Caves Scavenger-Gladiator | -5/Zhirov Scavenger-Gladiator | -4/Proximity Caves Infiltrator-Gladiator | -4/Factory Scavenger-Gladiator | -3/Research Gladiator | -3/Testing Gladiator | -2/Research Scavenger-Mutant | -2/Quarantine Scavenger-Mutant | -1/Access Resources | -11 -10 -9 -8 -7 -6 -6 -6 -6 -6 -5 -5 -5 -5 -4 -4 -3 -3 -2 -2 -1 ----------- Run | Yrd Mat Mat Mat Fac Fac Ext Cet Arc Hub Fac Upp Upp Zhi Pro Fac Res Tes Res Qua Acc Matter Collected 6117 | 189 . 297 403 299 282 376 160 151 155 488 121 74 70 268 115 352 1100 530 571 116 Remotely . | . . . . . . . . . . . . . . . . . . . . . Salvage Created 23597 | . . 940 2057 734 732 922 144 291 259 2094 315 156 429 668 115 1084 4019 4540 3239 859 Parts 889 | . . 49 48 32 26 34 8 21 16 92 5 3 6 13 7 17 192 152 122 46 Haulers Intercepted 27 | . . 4 3 . . . . . . 7 . . . . . 6 1 6 . . Recyclers Shooed 8 | . . . . . . . . . . 4 . . . . . . 2 2 . . Parts Field Recycled . | . . . . . . . . . . . . . . . . . . . . . Retrieved Matter . | . . . . . . . . . . . . . . . . . . . . . Parts Self-Destructed 16 | . . . . . . . . . . . 2 2 4 8 . . . . . . Prevented 9 | . . . . . . . . . . . 1 . . 8 . . . . . . Parts Restored . | . . . . . . . . . . . . . . . . . . . . . Kills | -11 -10 -9 -8 -7 -6 -6 -6 -6 -6 -5 -5 -5 -5 -4 -4 -3 -3 -2 -2 -1 ------- Run | Yrd Mat Mat Mat Fac Fac Ext Cet Arc Hub Fac Upp Upp Zhi Pro Fac Res Tes Res Qua Acc Combat Hostiles Destroyed 272 | . . 14 33 12 8 10 1 . 4 18 7 3 . 10 1 10 53 44 34 10 Melee 222 | . . 13 13 12 7 9 1 . 4 18 6 1 . 4 1 4 44 41 34 10 Classes Destroyed 24 | . . 9 3 1 . . . . 1 . 1 . . 1 . . 5 1 2 . Worker 15 | . . 1 6 . 1 . . . 1 1 . . . . . . 4 1 . . Builder 13 | . . 1 2 . . 1 . . . 3 . . . . . . 2 3 1 . Tunneler 2 | . . 1 . . . . . . . 1 . . . . . . . . . . Hauler 27 | . . 4 3 . . . . . . 7 . . . . . 6 1 6 . . Recycler 18 | . . 1 2 1 2 2 . . . 2 . . . . . 1 . 4 1 2 Minesweeper 1 | . . . . . . . . . . . . . . 1 . . . . . . Mechanic 2 | . . . 1 . . . . . . . . . . . . . . . 1 . Operator 16 | . . 1 2 . . . . 8 . . . . . . . . 3 . 2 . Watcher 13 | . . 1 2 . . 2 . . . . . . . . 1 1 3 2 1 . Swarmer 28 | . . . . . . . . . . . 4 . . 2 . 9 4 4 . 5 Saboteur 2 | . . . . . . . . . . . . . . . . . 1 . 1 . Grunt 118 | . . 11 25 6 6 6 . . 2 7 3 2 . 7 . . 13 13 15 2 Brawler 3 | . . . 1 . . . . . . . . . . . . . 1 . 1 . Duelist 1 | . . . . . . . . . . . . . . . . . 1 . . . Researcher 3 | . . . . . . . . . . . . . . . . . 1 . 2 . Sentry 34 | . . 3 5 4 . 4 . . . 1 . . . 1 1 . 7 5 3 . Specialist 2 | . . . . . . . . . . . . . . . . . . 2 . . Hunter 16 | . . . 2 . 2 . . . . . . . . . . 1 . 5 5 1 Programmer 52 | . . . . 2 . . . . . 10 . 1 . . . . 23 11 5 . Heavy 1 | . . . . . . . . . 1 . . . . . . . . . . . Q-Series 3 | . . . . . . . . . . . . . . . . . . . 1 2 Cetus Guard 1 | . . . . . . . 1 . . . . . . . . . . . . . S7 Guard 1 | . . . . . . . . . . . . . . . . . . 1 . . Lightning 1 | . . . . . . . . . 1 . . . . . . . . . . . CL-0N3 Special 4 | . . . . . . . . . . . . . . . . . . 1 3 . Striker 2 | . . . . . . . . . . . . . . . . . 2 . . . Alpha 7 3 | . . . . . . . . . . . . . . . . . 1 2 . . Best Kill Streak 10 | . . 5 10 4 3 4 1 3 3 5 4 2 . 4 2 5 7 7 5 3 Combat Bots Only 6 | . . 3 6 4 3 2 1 . 2 5 4 2 . 4 1 5 5 6 5 3 Max Kills in Single Turn 2 | . . 1 1 1 1 1 1 1 1 1 1 1 . 1 1 1 1 2 1 1 Gunslinging . | . . . . . . . . . . . . . . . . . . . . . Exploded . | . . . . . . . . . . . . . . . . . . . . . Melee 2 | . . 1 1 1 1 1 1 . 1 1 1 1 . 1 1 1 1 2 1 1 Uniques/NPCs Destroyed 1 | . . . . . . . 1 . . . . . . . . . . . . . A7 (-6/Cetus) Combat | -11 -10 -9 -8 -7 -6 -6 -6 -6 -6 -5 -5 -5 -5 -4 -4 -3 -3 -2 -2 -1 -------- Run | Yrd Mat Mat Mat Fac Fac Ext Cet Arc Hub Fac Upp Upp Zhi Pro Fac Res Tes Res Qua Acc Hostile Shots Fired 2996 | . . 84 261 179 125 299 46 10 33 101 121 40 . 51 34 87 353 509 544 119 Missed 912 | . . 24 62 71 18 132 10 4 11 28 24 7 . 20 13 23 104 190 128 43 Hits 2084 | . . 60 199 108 107 167 36 6 22 73 97 33 . 31 21 64 249 319 416 76 Melee 23 | . . . 1 . . . . . . . 2 2 . . . . 15 . 3 . Projectile 2061 | . . 60 198 108 107 167 36 6 22 73 95 31 . 31 21 64 234 319 413 76 AOE 14 | . . . . . . . . . . . . . . . . 1 . . 12 1 Critical Strikes 113 | . . 4 11 4 6 3 6 . 2 6 5 4 . 1 1 1 21 19 18 1 Actively Blocked 1 | . . . . . . . . . . . . . . . . . 1 . . . Part Disruptions 8 | . . . . . . . . . . . . . . 2 . . 2 3 . 1 Damage Taken 31982 | . . 781 2833 758 1615 1953 792 135 749 1337 1731 510 . 550 335 1181 3548 4751 7142 1281 Core 2796 | . . 228 493 122 229 321 60 . 198 84 109 62 . 47 10 157 215 127 295 39 Absorbed by Shields 3963 | . . . 255 244 240 174 96 . . . . . . 89 76 258 724 418 934 455 Redirected to Shielding 373 | . . . . . 108 . . . . 8 44 . . . . 138 75 . . . Ignored by Resistances 8643 | . . . . 12 . . 165 . 23 538 . 174 . . . . 1907 2172 3243 409 Regen/Repaired (Parts) 13409 | . . . 378 . . . 32 22 11 1631 325 113 . 88 103 167 2613 3046 4391 489 Core Remaining (%) 67 | 100 100 43 10 82 . . . . 4 . . . . 69 99 . 71 . 63 97 Volleys Fired . | . . . . . . . . . . . . . . . . . . . . . Largest . | . . . . . . . . . . . . . . . . . . . . . Hottest . | . . . . . . . . . . . . . . . . . . . . . Shots Fired . | . . . . . . . . . . . . . . . . . . . . . Gun . | . . . . . . . . . . . . . . . . . . . . . Cannon . | . . . . . . . . . . . . . . . . . . . . . Launcher . | . . . . . . . . . . . . . . . . . . . . . Special . | . . . . . . . . . . . . . . . . . . . . . Kinetic . | . . . . . . . . . . . . . . . . . . . . . Thermal . | . . . . . . . . . . . . . . . . . . . . . Explosive . | . . . . . . . . . . . . . . . . . . . . . Electromagnetic . | . . . . . . . . . . . . . . . . . . . . . Robot Hit Streak . | . . . . . . . . . . . . . . . . . . . . . Robot Miss Streak . | . . . . . . . . . . . . . . . . . . . . . Penetration Max . | . . . . . . . . . . . . . . . . . . . . . Secondary Targets . | . . . . . . . . . . . . . . . . . . . . . Shots Hit Robots 1177 | . . 52 139 46 42 81 16 12 20 98 23 11 6 17 6 28 183 193 168 36 Core Hits 415 | . . 18 20 17 14 24 5 4 11 39 7 1 4 7 3 5 64 84 71 17 Critical Kills 6 | . . 3 2 . . . . . . . . . . . . . . 1 . . Critical Parts Destroyed 65 | . . 6 22 1 1 3 . . . . 3 1 . 4 . 7 12 5 . . Critical Strikes 232 | . . 9 26 7 5 20 1 . 2 15 6 4 . 4 . 8 42 42 36 5 Smash 74 | . . 9 26 1 1 3 . . . . 3 1 . 4 . 7 13 6 . . Sever 158 | . . . . 6 4 17 1 . 2 15 3 3 . . . 1 29 36 36 5 Melee Attacks 1589 | . . 74 189 69 65 103 17 16 28 139 43 19 6 42 12 50 229 220 220 48 Impact 389 | . . 31 179 11 13 17 . . . 2 12 5 . 22 6 35 36 20 . . Slashing 1200 | . . 43 10 58 52 86 17 16 28 137 31 14 6 20 6 15 193 200 220 48 Piercing . | . . . . . . . . . . . . . . . . . . . . . Sneak Attacks 131 | . . 11 17 1 5 5 4 11 3 17 . . . 3 1 11 15 17 8 2 Combat Hostiles 6 | . . . 1 . . . . . . . . . . 2 . 1 2 . . . Follow-up Attacks 266 | . . 6 32 7 10 21 3 . 8 18 4 1 . 3 . 6 38 48 49 12 Damage Inflicted 64041 | . . 1984 5369 1748 1794 3252 634 1159 855 5104 1205 575 497 1019 270 2053 11795 12637 9921 2170 Guns . | . . . . . . . . . . . . . . . . . . . . . Cannons . | . . . . . . . . . . . . . . . . . . . . . Explosions 103 | . . . . . . . . . 103 . . . . . . . . . . . Melee 63803 | . . 1984 5369 1748 1794 3252 634 1159 752 5035 1205 575 497 1019 270 2053 11750 12616 9921 2170 Ramming 135 | . . . . . . . . . . 69 . . . . . . 45 21 . . Kinetic . | . . . . . . . . . . . . . . . . . . . . . Thermal . | . . . . . . . . . . . . . . . . . . . . . Explosive . | . . . . . . . . . . . . . . . . . . . . . Electromagnetic 103 | . . . . . . . . . 103 . . . . . . . . . . . Impact 13782 | . . 1228 5141 224 458 491 . . . . 472 287 . 810 50 1644 1901 1076 . . Slashing 50021 | . . 756 228 1524 1336 2761 634 1159 752 5035 733 288 497 209 220 409 9849 11540 9921 2170 Piercing . | . . . . . . . . . . . . . . . . . . . . . Highest Corruption 18 | . . 10 1 3 . . . 16 10 7 4 6 6 18 2 . 13 7 10 . Average Corruption 3 | . . 3 1 1 . . . 5 4 2 3 5 5 5 2 . 2 3 6 . Corruption Purged 36 | . . . . 3 . . . 19 . 6 . . 2 . . . . . 6 . Corruption Blocked 17 | . . . . . . . . . 8 . . . . . . . 8 . . 1 Effects 248 | . . 17 . 9 . . . 10 3 30 20 15 5 27 4 . 33 22 53 . Message Errors 63 | . . 5 . 3 . . . 3 . 7 4 1 1 6 2 . 10 5 16 . Matter Fused 82 | . . 5 . 3 . . . 3 2 9 4 6 1 10 1 . 8 9 21 . Heat Flow Errors 24 | . . 2 . . . . . 1 1 3 2 3 3 1 . . 4 2 2 . Energy Discharges 33 | . . 1 . 1 . . . 2 . 7 5 1 . 4 . . 4 2 6 . Parts Rejected 2 | . . . . . . . . . . . 1 . . . . . . . 1 . Parts Fused 2 | . . . . . . . . . . 1 . . . 1 . . . . . . Data Loss (minor) 25 | . . 2 . 2 . . . . . 2 2 4 . 2 1 . 3 2 5 . Data Loss (major) 11 | . . 1 . . . . . 1 . 1 2 . . . . . 3 1 2 . Alerts 6 | . . 1 . . . . . . . . . . . 3 . . 1 1 . . Overload Shots . | . . . . . . . . . . . . . . . . . . . . . Overflow Damage 9563 | . . 391 1465 217 272 422 6 452 44 347 308 184 104 321 36 911 2314 1150 542 77 Projectiles . | . . . . . . . . . . . . . . . . . . . . . Explosions 6 | . . . . . . . . . 6 . . . . . . . . . . . Melee 9557 | . . 391 1465 217 272 422 6 452 38 347 308 184 104 321 36 911 2314 1150 542 77 Knockbacks 64 | . . 2 24 3 3 . . . . 2 2 1 . 3 . 5 13 6 . . Impact 60 | . . 2 21 3 3 . . . . 2 2 1 . 3 . 5 13 5 . . Kinetic . | . . . . . . . . . . . . . . . . . . . . . Secondary 4 | . . . 3 . . . . . . . . . . . . . . 1 . . Self-Inflicted Damage 109 | . . . . . . . . . 109 . . . . . . . . . . . Shots 1 | . . . . . . . . . 1 . . . . . . . . . . . Rammed . | . . . . . . . . . . . . . . . . . . . . . Targets Rammed 17 | . . . 1 . . . . . . 10 . . . . . . 3 3 . . Kicked 17 | . . . 1 . . . . . . 10 . . . . . . 3 3 . . Crushed . | . . . . . . . . . . . . . . . . . . . . . Highest Temperature 280 | . . 268 13 . 10 2 16 257 174 190 214 256 207 218 . 280 249 197 253 84 Average Temperature 80 | . . 106 8 . 6 2 5 138 83 82 58 89 93 95 . 144 108 77 122 35 Received Heat Transfer 7043 | . . 393 1527 222 463 496 156 18 63 246 585 180 . 109 12 55 404 715 1290 109 Siege Activations . | . . . . . . . . . . . . . . . . . . . . . Martial Activations . | . . . . . . . . . . . . . . . . . . . . . Shielding Activations . | . . . . . . . . . . . . . . . . . . . . . Robots Disrupted . | . . . . . . . . . . . . . . . . . . . . . Combat Hostiles . | . . . . . . . . . . . . . . . . . . . . . Robots Corrupted 67 | . . 4 29 . 1 1 . . . . 1 2 . 6 . 10 9 4 . . Combat Hostiles 50 | . . 1 20 . 1 1 . . . . 1 2 . 6 . 6 9 3 . . Parts Fried 95 | . . 6 44 . . 2 . . . . 2 . . 10 . 10 19 2 . . Impact Corruptions 174 | . . 13 60 4 3 4 . . . . 8 5 . 10 . 28 27 12 . . Robots Melted . | . . . . . . . . . . . . . . . . . . . . . Combat Hostiles . | . . . . . . . . . . . . . . . . . . . . . Parts Melted 5 | . . . . . . . . . . 1 . . . . . 2 . 2 . . Heat Transferred . | . . . . . . . . . . . . . . . . . . . . . Parts Sabotaged . | . . . . . . . . . . . . . . . . . . . . . Parts Stolen . | . . . . . . . . . . . . . . . . . . . . . Parts Stripped . | . . . . . . . . . . . . . . . . . . . . . Power Chain Reactions . | . . . . . . . . . . . . . . . . . . . . . Alert | -11 -10 -9 -8 -7 -6 -6 -6 -6 -6 -5 -5 -5 -5 -4 -4 -3 -3 -2 -2 -1 ------- Run | Yrd Mat Mat Mat Fac Fac Ext Cet Arc Hub Fac Upp Upp Zhi Pro Fac Res Tes Res Qua Acc Maximum Alert Level 4 | . . . 2 . . 2 1 1 3 2 . . . . . 1 3 4 3 3 Low Security (%) 45 | 100 100 100 71 100 100 60 . 80 22 2 . . . . 100 82 37 . . . Level 1 23 | . . . 27 . . 17 100 19 10 85 . . . . . 17 19 . . . Level 2 13 | . . . 1 . . 22 . . 55 12 . . . . . . 23 40 10 49 Level 3 14 | . . . . . . . . . 12 . . . . . . . 19 26 89 50 Level 4 2 | . . . . . . . . . . . . . . . . . . 33 . . Level 5 . | . . . . . . . . . . . . . . . . . . . . . High Security . | . . . . . . . . . . . . . . . . . . . . . Max Security . | . . . . . . . . . . . . . . . . . . . . . Peak Influence 1341 | . 68 156 410 183 93 535 367 223 830 414 . . . . 62 260 1001 1341 982 757 Initial 753 | . . 7 33 183 63 2 280 107 21 401 . . . . 30 7 103 560 753 577 Average 340 | . 32 63 129 112 33 195 292 152 418 324 . . . . 8 136 394 888 871 670 Influence Increases 11843 | . 87 483 1040 451 243 1162 358 266 1169 713 165 105 15 300 153 588 1727 1377 1031 410 Destroy 0b10 Robot/C 6240 | . . 280 660 240 160 560 160 80 260 360 140 60 . 200 20 200 1160 800 660 240 Destroy 0b10 Robot/NC 590 | . . 50 90 5 15 30 10 45 20 70 . . 15 5 5 40 70 80 30 10 Destroy Leader 1168 | . . 70 170 90 30 64 . . 70 92 10 . . 20 12 34 178 186 92 50 Allied During Kill 994 | . . . . . . 361 170 125 293 . . . . . . . 25 . . 20 Successful Hack 785 | . 27 6 30 30 5 34 . . 34 120 . . . . 89 74 112 122 102 . Select Force Hacks 70 | . . . . 20 . . . . 50 . . . . . . . . . . . Disable Machine 510 | . . . 15 . 15 . . 15 240 15 . . . . . . 105 . 75 30 Anti-Garrison Action 200 | . . . . . . . . . . . . . . . . 200 . . . . Destroy Structure 281 | . . 2 . 6 3 8 18 1 142 26 . . . . 12 10 32 9 12 . Partial Spotted 30 | . . . . 15 . . . . . 15 . . . . . . . . . . Lose Combat Pursuer 975 | . 60 75 75 45 15 105 . . 60 15 15 45 . 75 15 30 45 180 60 60 Influence Decreases 11090 | . 69 420 717 725 367 666 592 473 410 1127 571 105 15 252 186 419 915 1032 1409 620 Entered New Map 2861 | . . 11 48 221 67 4 222 161 40 419 151 . . . 18 8 81 436 588 386 Time Decay 6931 | . 69 394 539 494 267 512 270 262 110 678 360 95 15 252 168 371 744 546 571 214 Lost Part 698 | . . 15 130 10 33 110 20 10 . 30 60 10 . . . 40 70 40 100 20 Lost Ally 450 | . . . . . . 40 80 40 260 . . . . . . . 20 10 . . Purge Threat 150 | . . . . . . . . . . . . . . . . . . . 150 . Squads Dispatched 84 | . . 4 7 7 4 3 . . 4 8 . . . . 2 5 18 10 11 1 Investigation 24 | . . 2 5 2 2 2 . . 2 1 . . . . . 4 2 1 1 . Extermination 25 | . . . . 2 . . . . . 6 . . . . 1 . 9 3 3 1 Reinforcement 23 | . . 2 2 . 2 1 . . 2 1 . . . . 1 1 3 4 4 . Assault 8 | . . . . . . . . . . . . . . . . . 3 2 3 . Garrison 4 | . . . . 3 . . . . . . . . . . . . 1 . . . Intercept . | . . . . . . . . . . . . . . . . . . . . . Searches Triggered . | . . . . . . . . . . . . . . . . . . . . . Unchained Authorized 3 | . . . . . . . . . . . . . . . . . 1 1 1 . Construction Impeded 1 | . . . . . . 1 . . . . . . . . . . . . . . Haulers Reinforced 5 | . . . . . . . . . . 1 . . . . . 1 . 3 . . Active Scanning Responses . | . . . . . . . . . . . . . . . . . . . . . Cargo Convoy Interrupts 1 | . . . . 1 . . . . . . . . . . . . . . . . Stealth | -11 -10 -9 -8 -7 -6 -6 -6 -6 -6 -5 -5 -5 -5 -4 -4 -3 -3 -2 -2 -1 --------- Run | Yrd Mat Mat Mat Fac Fac Ext Cet Arc Hub Fac Upp Upp Zhi Pro Fac Res Tes Res Qua Acc Distress Signals 26 | . . 1 5 1 1 . 2 . 1 2 . . . . . 5 3 1 3 1 Communications Jammed 31 | . . . . . . . . . . . . . . . . 2 29 . . . Distress Signals 30 | . . . . . . . . . . . . . . . . 1 29 . . . Times Spotted 494 | . 3 29 48 19 13 29 10 8 21 40 8 6 . 15 7 30 65 69 56 18 Peak Tracking Total 11 | . 2 3 7 5 4 4 5 2 6 4 4 4 . 4 3 5 6 11 6 4 Tactical Retreats 53 | . 2 3 4 3 1 5 . . 1 5 1 3 . 3 1 2 2 11 4 2 ECM-based Alert Blocks 9 | . . . . . . . . . . 9 . . . . . . . . . . Traps | -11 -10 -9 -8 -7 -6 -6 -6 -6 -6 -5 -5 -5 -5 -4 -4 -3 -3 -2 -2 -1 ------- Run | Yrd Mat Mat Mat Fac Fac Ext Cet Arc Hub Fac Upp Upp Zhi Pro Fac Res Tes Res Qua Acc Traps Triggered 20 | . . 2 2 1 1 4 . . . 1 . . . 1 2 . 3 2 1 . Indirectly . | . . . . . . . . . . . . . . . . . . . . . Trap Hack Attempts . | . . . . . . . . . . . . . . . . . . . . . Triggered . | . . . . . . . . . . . . . . . . . . . . . Disarmed . | . . . . . . . . . . . . . . . . . . . . . Reprogrammed . | . . . . . . . . . . . . . . . . . . . . . Reused 5 | . . . . . . . . . . . . . . 5 . . . . . . Traps Extracted . | . . . . . . . . . . . . . . . . . . . . . Installed 5 | . . . . . . . . . . . . . . 5 . . . . . . Triggered 5 | . . . . . . . . . . . . . . 5 . . . . . . Most Traps Carried 1 | . . . . . . . . . . . . . . 1 . . . . . . Machines | -11 -10 -9 -8 -7 -6 -6 -6 -6 -6 -5 -5 -5 -5 -4 -4 -3 -3 -2 -2 -1 ---------- Run | Yrd Mat Mat Mat Fac Fac Ext Cet Arc Hub Fac Upp Upp Zhi Pro Fac Res Tes Res Qua Acc Machines Disabled 34 | . . . 1 . 1 . . 1 16 1 . . . . . . 7 . 5 2 Max in Single Turn 8 | . . . 1 . 1 . . . 8 1 . . . . . . 1 . 1 1 Garrison Access 4 | . . . 1 . . . . . . . . . . . 1 1 . . 1 . Network Hub 2 | . . . . . . . . . 2 . . . . . . . . . . . Machines Repaired . | . . . . . . . . . . . . . . . . . . . . . Machines Dismantled . | . . . . . . . . . . . . . . . . . . . . . Machines Sabotaged 1 | . . . . . . . . . 1 . . . . . . . . . . . Overloaded Fab Kills . | . . . . . . . . . . . . . . . . . . . . . Hacking | -11 -10 -9 -8 -7 -6 -6 -6 -6 -6 -5 -5 -5 -5 -4 -4 -3 -3 -2 -2 -1 --------- Run | Yrd Mat Mat Mat Fac Fac Ext Cet Arc Hub Fac Upp Upp Zhi Pro Fac Res Tes Res Qua Acc Machines Accessed 112 | . 5 8 7 8 3 14 1 . 2 12 . . 4 . 7 5 14 9 10 3 Terminals 67 | . 5 6 5 4 . 14 1 . 2 4 . . . . 4 2 9 4 6 1 Fabricators 9 | . . . . 2 1 . . . . 3 . . . . . 1 1 1 . . Repair Stations 12 | . . . 1 1 1 . . . . 3 . . . . . 1 2 1 2 . Recycling Units 1 | . . 1 . . . . . . . . . . . . . . . . . . Scanalyzers 12 | . . 1 . . . . . . . 2 . . . . 2 . 1 3 1 2 Garrison Access 7 | . . . 1 1 1 . . . . . . . . . 1 1 1 . 1 . Total Hacks 421 | . 17 22 26 18 10 23 1 . 17 52 . . 16 . 41 21 62 50 38 7 Successful 208 | . 9 14 17 6 3 11 . . 11 27 . . 16 . 16 9 24 26 15 4 Failed 210 | . 7 7 9 12 7 12 1 . 6 24 . . . . 25 12 38 24 23 3 Catastrophic 60 | . . 2 1 4 . 5 1 . . 11 . . . . 5 5 12 2 10 2 Database Lockouts 3 | . 1 1 . . . . . . . 1 . . . . . . . . . . Manual 130 | . 13 10 8 9 7 8 1 . 11 13 . . . . 7 8 22 11 2 . Terminals 214 | . 17 14 18 9 . 23 1 . 17 14 . . . . 25 8 33 12 21 2 Fabricators 44 | . . . . 5 6 . . . . 12 . . . . . 4 7 10 . . Repair Stations 62 | . . . 7 2 1 . . . . 15 . . . . . 7 14 4 12 . Recycling Units 2 | . . 2 . . . . . . . . . . . . . . . . . . Scanalyzers 70 | . . 6 . . . . . . . 11 . . . . 14 . 6 24 4 5 Garrison Access 13 | . . . 1 2 3 . . . . . . . . . 2 2 2 . 1 . Terminal Hacks 67 | . 6 5 6 1 . 7 . . 3 3 . . 16 . 3 1 5 4 6 1 Record 6 | . . . . . . . . . . . . . 4 . . . . . 1 1 Part Schematic 5 | . . . . . . . . . 1 . . . 4 . . . . . . . Robot Analysis 11 | . 3 1 . . . . . . . 2 . . 4 . . . . . 1 . Prototype ID Bank 10 | . . 2 2 . . . . . . . . . 4 . . . 2 . . . Open Door 9 | . . . . . . 7 . . . . . . . . . . 1 1 . . Level Access Points 1 | . . . . . . . . . . . . . . . . . . . 1 . Branch Access Points 1 | . . . . . . . . . . . . . . . . 1 . . . . Terminal Index 2 | . . 1 1 . . . . . . . . . . . . . . . . . Alert Level 2 | . . . 1 . . . . . . . . . . . . . . . 1 . Unreport Threat 1 | . . . . . . . . . . . . . . . . . . . 1 . Locate Traps 4 | . . . . 1 . . . . . 1 . . . . . . 1 . 1 . Surveillance Status 1 | . . . . . . . . . . . . . . . . . . 1 . . Hauler Manifests 4 | . . 1 1 . . . . . . . . . . . 1 . . 1 . . Registered Components 2 | . . . . . . . . . 1 . . . . . . . . 1 . . Registered Prototypes 1 | . . . . . . . . . 1 . . . . . . . . . . . Zone Layout 7 | . 3 . 1 . . . . . . . . . . . 2 . 1 . . . Fabricator Hacks 15 | . . . . 1 2 . . . . 5 . . . . . 1 3 3 . . Network Status 3 | . . . . 1 . . . . . 1 . . . . . . . 1 . . Load Schematic 7 | . . . . . 1 . . . . 2 . . . . . 1 2 1 . . Build 5 | . . . . . 1 . . . . 2 . . . . . . 1 1 . . Repair Station Hacks 36 | . . . 6 . . . . . . 12 . . . . . 3 8 1 6 . Scan Component 20 | . . . 3 . . . . . . 6 . . . . . 2 4 1 4 . Repair 16 | . . . 3 . . . . . . 6 . . . . . 1 4 . 2 . Recycling Unit Hacks . | . . . . . . . . . . . . . . . . . . . . . Scanalyzer 35 | . . 6 . . . . . . . 3 . . . . 9 . 2 11 1 3 Insert Component 22 | . . 3 . . . . . . . 2 . . . . 5 . 2 6 1 3 Analyze 13 | . . 3 . . . . . . . 1 . . . . 4 . . 5 . . Garrison Access Hacks 3 | . . . 1 . . . . . . . . . . . 1 . . . 1 . Seal Access 3 | . . . 1 . . . . . . . . . . . 1 . . . 1 . Unauthorized Hacks 52 | . 3 3 4 4 1 4 . . 8 4 . . . . 3 4 6 7 1 . Terminals 39 | . 3 3 4 3 . 4 . . 8 1 . . . . 3 2 5 2 1 . Track 4 | . . . . . . . . . 2 . . . . . 1 . 1 . . . Assimilate 2 | . . . 1 . . . . . . . . . . . . . 1 . . . Botnet 25 | . 3 3 2 2 . 3 . . 2 1 . . . . 1 2 3 2 1 . Disrupt 1 | . . . . . . . . . 1 . . . . . . . . . . . Operators 5 | . . . 1 1 . 1 . . 1 . . . . . 1 . . . . . Sabotage 2 | . . . . . . . . . 2 . . . . . . . . . . . Fabricators 12 | . . . . 1 1 . . . . 3 . . . . . 1 1 5 . . Report 2 | . . . . . . . . . . 1 . . . . . . . 1 . . Prioritize 2 | . . . . . . . . . . 1 . . . . . . . 1 . . Liberate 1 | . . . . . . . . . . . . . . . . . . 1 . . Fabnet 1 | . . . . . . . . . . . . . . . . . . 1 . . Haulers 3 | . . . . . 1 . . . . 1 . . . . . . . 1 . . Download 1 | . . . . 1 . . . . . . . . . . . . . . . . Recompile 2 | . . . . . . . . . . . . . . . . 1 1 . . . Repair Stations . | . . . . . . . . . . . . . . . . . . . . . Recycling Units . | . . . . . . . . . . . . . . . . . . . . . Scanalyzers . | . . . . . . . . . . . . . . . . . . . . . Garrison Access 1 | . . . . . . . . . . . . . . . . 1 . . . . Jam 1 | . . . . . . . . . . . . . . . . 1 . . . . Data Cores Recovered 1 | . . 1 . . . . . . . . . . . . . . . . . . Used . | . . . . . . . . . . . . . . . . . . . . . Hacking Detections 95 | . 5 8 6 7 3 8 1 . 2 11 . . . . 6 5 14 7 9 3 Full Trace Events 13 | . . 3 2 1 1 2 . . . 1 . . . . . . 1 1 1 . Feedback Events 1 | . . . . 1 . . . . . . . . . . . . . . . . Corruption 1 | . . . . 1 . . . . . . . . . . . . . . . . Feedback Blocked . | . . . . . . . . . . . . . . . . . . . . . Robot Schematics Acquired 1 | . . . . . . . . . . . . . . . . . 1 . . . Robots Built . | . . . . . . . . . . . . . . . . . . . . . Authchips . | . . . . . . . . . . . . . . . . . . . . . Time . | . . . . . . . . . . . . . . . . . . . . . Total Robot Build Rating . | . . . . . . . . . . . . . . . . . . . . . Part Schematics Acquired 21 | . . 3 . 1 . . . . 1 1 . . 4 . 4 . 2 2 3 . Parts Built 6 | . . . . . . . . . . 4 . . . . . . 1 1 . . Authchips 3 | . . . . . 1 . . . . 1 . . . . . . 1 . . . Time 349 | . . . . . 152 . . . . 78 . . . . . . 68 51 . . Total Part Build Rating 36 | . . . . . . . . . . 20 . . . . . . 8 8 . . Part Studies Acquired . | . . . . . . . . . . . . . . . . . . . . . Parts Repaired 15 | . . . 3 . . . . . . 5 . . . . . 1 4 . 2 . Time 1150 | . . . 126 . . . . . . 496 . . . . . 62 361 . 105 . Parts Recycled . | . . . . . . . . . . . . . . . . . . . . . Recycled Matter . | . . . . . . . . . . . . . . . . . . . . . Retrieved Matter . | . . . . . . . . . . . . . . . . . . . . . Retrieved Components . | . . . . . . . . . . . . . . . . . . . . . Parts Scanalyzed 12 | . . 3 . . . . . . . 2 . . . . 4 . 1 2 . . Part Schematics Acquired 10 | . . 3 . . . . . . . 1 . . . . 4 . . 2 . . Parts Damaged 4 | . . . . . . . . . . . . . . . 1 . 1 2 . . Bothacking | -11 -10 -9 -8 -7 -6 -6 -6 -6 -6 -5 -5 -5 -5 -4 -4 -3 -3 -2 -2 -1 ------------ Run | Yrd Mat Mat Mat Fac Fac Ext Cet Arc Hub Fac Upp Upp Zhi Pro Fac Res Tes Res Qua Acc Used RIF Installer . | . . . . . . . . . . . . . . . . . . . . . Robots Hacked . | . . . . . . . . . . . . . . . . . . . . . Non-combat . | . . . . . . . . . . . . . . . . . . . . . Combat . | . . . . . . . . . . . . . . . . . . . . . Robot Hacks Applied . | . . . . . . . . . . . . . . . . . . . . . Relay Couplers Released . | . . . . . . . . . . . . . . . . . . . . . Fabnet Peak Effective % 3 | . . . . . . . . . . . . . . . . . . . . 3 Robots Rewired 14 | . . . . . . 13 . . . . . . . . . . 1 . . . Allies Hacked . | . . . . . . . . . . . . . . . . . . . . . Hacks Repelled . | . . . . . . . . . . . . . . . . . . . . . Allies | -11 -10 -9 -8 -7 -6 -6 -6 -6 -6 -5 -5 -5 -5 -4 -4 -3 -3 -2 -2 -1 -------- Run | Yrd Mat Mat Mat Fac Fac Ext Cet Arc Hub Fac Upp Upp Zhi Pro Fac Res Tes Res Qua Acc Total Allies 30 | . . . . . . 21 5 . . . . . . . . . 1 . . 3 Largest Group 20 | . . . . . . 18 20 17 15 . . . . . . . 1 . . 3 Highest-Rated Group 1048 | . . . . . . 672 1048 812 756 . . . . . . . 162 . . 379 Highest-Rated Ally 162 | . . . . . . 159 159 96 96 . . . . . . . 162 . . 135 Total Orders 4 | . . . . . . . . . . . . . . . . . . 3 1 . EXPLORE 3 | . . . . . . . . . . . . . . . . . . 2 1 . RETURN 1 | . . . . . . . . . . . . . . . . . . 1 . . Ally Attacks 430 | . . . . . . 120 109 32 136 . . . . . . . 16 . . 17 Total Damage 11610 | . . . . . . 2601 2289 1024 4164 . . . . . . . 1042 . . 490 Kills 55 | . . . . . . 19 10 5 14 . . . . . . . 5 . . 2 Allies Corrupted 6 | . . . . . . . . . 5 . . . . . . . 1 . . . Allies Melted 1 | . . . . . . . . . 1 . . . . . . . . . . . Intel | -11 -10 -9 -8 -7 -6 -6 -6 -6 -6 -5 -5 -5 -5 -4 -4 -3 -3 -2 -2 -1 ------- Run | Yrd Mat Mat Mat Fac Fac Ext Cet Arc Hub Fac Upp Upp Zhi Pro Fac Res Tes Res Qua Acc Active Infowar (turns) 14539 | . 39 1148 1159 1018 478 . . 131 62 2656 885 474 230 1021 769 877 2381 619 592 . Sensors 9799 | . . . . 753 464 . . 131 62 2461 793 474 230 948 740 458 1621 222 442 . Terrain 1011 | . . . . 551 460 . . . . . . . . . . . . . . . Structural 6033 | . . . 639 354 . . . . . 3 864 474 230 947 739 877 906 . . . T.N.C. 2863 | . 39 1148 1159 . . . . . . . . . . . . . . 517 . . Machine Analysis 906 | . . . . . . . . . . 906 . . . . . . . . . . Jamming 3800 | . . . . . . . . . . 12 512 1 4 575 622 877 841 . 356 . ECM 138 | . . . . 3 3 . . . . 129 . . . . 2 1 . . . . Robot Analysis Total 11 | . 3 1 . . . . . . . 2 . . 4 . . . . . 1 . Derelict Logs Recovered 3 | . . . . . . . . . . . 1 1 . 1 . . . . . . Drone Launches 4 | . . . . . . . . . . . . . . . . . . 3 1 . Drone Recoveries 3 | . . . . . . . . . . . . . . . . . . 2 1 . Exploration | -11 -10 -9 -8 -7 -6 -6 -6 -6 -6 -5 -5 -5 -5 -4 -4 -3 -3 -2 -2 -1 ------------- Run | Yrd Mat Mat Mat Fac Fac Ext Cet Arc Hub Fac Upp Upp Zhi Pro Fac Res Tes Res Qua Acc Turns Passed 23085 | 43 152 1148 1742 1310 732 1764 590 571 221 2664 897 499 230 1144 769 983 3866 1575 1726 459 Spaces Moved 12712 | 47 167 468 774 740 337 934 218 281 132 1652 526 280 182 834 582 657 1873 796 961 271 Core 119 | 32 87 . . . . . . . . . . . . . . . . . . . Treads . | . . . . . . . . . . . . . . . . . . . . . Legs 12593 | 15 80 468 774 740 337 934 218 281 132 1652 526 280 182 834 582 657 1873 796 961 271 Wheels . | . . . . . . . . . . . . . . . . . . . . . Hover . | . . . . . . . . . . . . . . . . . . . . . Flight . | . . . . . . . . . . . . . . . . . . . . . Fastest Speed 50 | 50 50 120 120 122 122 120 190 120 110 110 120 110 110 110 110 107 107 112 106 110 Average Speed 127 | 72 83 186 126 123 167 147 190 178 116 120 151 110 110 110 110 111 125 118 110 110 Slowest Speed 260 | 120 120 260 197 127 193 220 190 190 190 187 190 110 110 176 110 115 184 182 182 111 Overloaded Moves . | . . . . . . . . . . . . . . . . . . . . . Propulsion Burnouts . | . . . . . . . . . . . . . . . . . . . . . Robots Hopped . | . . . . . . . . . . . . . . . . . . . . . Potential Cave-ins 3 | . . . . . . . . . . . . . . . . . 2 . . 1 Cave-ins Triggered 1 | . . . . . . . . . . 1 . . . . . . . . . . Teleports 1 | . . . . . . . . . . . . . . . . . . . 1 . Exploration Rate (%) 43 | 4 41 47 58 24 8 85 57 94 19 23 71 44 62 71 13 17 90 19 59 9 Regions Visited 20 Branch Regions 10 Pre-discovered Areas 4 | . . . . . . . . . . . . . 3 1 . . . . . . Known Exits Taken 16 | . . . . 1 1 1 1 1 1 1 1 1 1 1 1 1 1 1 1 . Unknown Exits Taken 4 | 1 1 1 1 . . . . . . . . . . . . . . . . . Scrap Searched 4 | . . . . . . . . . . . 1 1 . 2 . . . . . . Spaces Dug 70 | . . 2 . 6 3 . . . . 13 2 2 . 11 6 6 12 3 4 . Terrain Destroyed 254 | . . 2 . 6 3 . . . 184 13 2 2 . 11 6 6 12 3 4 . Melee 70 | . . 2 . 6 3 . . . . 13 2 2 . 11 6 6 12 3 4 . Projectile . | . . . . . . . . . . . . . . . . . . . . . AOE 184 | . . . . . . . . . 184 . . . . . . . . . . . Terrain Rammed . | . . . . . . . . . . . . . . . . . . . . . Walls Destroyed . | . . . . . . . . . . . . . . . . . . . . . Machines Disabled . | . . . . . . . . . . . . . . . . . . . . . Actions | -11 -10 -9 -8 -7 -6 -6 -6 -6 -6 -5 -5 -5 -5 -4 -4 -3 -3 -2 -2 -1 --------- Run | Yrd Mat Mat Mat Fac Fac Ext Cet Arc Hub Fac Upp Upp Zhi Pro Fac Res Tes Res Qua Acc Total 17843 | 55 178 623 1270 1064 450 1285 388 335 178 2185 575 454 204 1011 686 847 3143 1171 1365 376 Wait 2711 | . 5 51 257 181 13 106 131 12 . 345 3 151 . 102 63 85 866 132 150 58 Move 12691 | 46 166 467 773 739 336 933 217 280 131 1651 525 279 181 833 581 656 1872 795 960 270 Hop . | . . . . . . . . . . . . . . . . . . . . . Pick Up 233 | 1 1 15 25 23 7 15 6 7 2 14 1 . 7 8 3 17 48 15 16 2 Fast Attach 131 | 4 2 7 8 2 7 12 4 5 6 6 2 1 3 2 4 10 26 8 12 . Attach 139 | . 4 2 15 12 5 13 3 2 1 9 4 5 2 1 4 7 15 12 17 6 Detach 27 | 4 . . 1 . 1 . 1 . 1 1 1 2 . 2 . 1 3 1 5 3 Swap 286 | . . 9 19 23 19 12 4 7 10 25 4 . 2 15 16 11 62 26 18 4 Drop 272 | . . 10 22 26 10 21 8 8 7 13 . . 3 9 3 23 68 21 20 . Fire . | . . . . . . . . . . . . . . . . . . . . . Melee 1221 | . . 62 149 58 52 78 14 14 20 111 35 16 6 34 12 37 171 158 161 33 Ram . | . . . . . . . . . . . . . . . . . . . . . Kick 17 | . . . 1 . . . . . . 10 . . . . . . 3 3 . . Crush . | . . . . . . . . . . . . . . . . . . . . . Escape Stasis 21 | . . . . . . 15 . . . . . . . . . . . . 6 . Rewire 89 | . . . . . . 80 . . . . . . . . . . 9 . . . Trap 5 | . . . . . . . . . . . . . . 5 . . . . . . Miscellaneous . | . . . . . . . . . . . . . . . . . . . . . Route ------- -11/Scrapyard -10/Materials -9/Materials (discovered 2 exits: *Mat / [*Min]) -8/Materials -7/Factory -6/Factory -6/Extension (discovered 2 exits: *Fac / *Cet) -6/Cetus (discovered 2 exits: *Fac / *Arc) -6/Archives (discovered 3 exits: *Fac / *Hub x2) -6/Hub_04(d) -5/Factory -5/Upper Caves -5/Upper Caves -5/Zhirov -4/Proximity Caves -4/Factory (discovered 3 exits: *Res x2 / Upp) -3/Research (discovered 3 exits: *Res / *Tes x2) -3/Testing -2/Research -2/Quarantine -1/Access (discovered 2 exits: *Sur / Com) To Epsilon Eridani History --------- Turn | Location | Event 3 | -11/Scrapyard | Discovered new exit (range 15) 44 | -11/Scrapyard | Entered Materials 69 | -10/Materials | Central database locked down 152 | -10/Materials | Discovered new exit (range 10) 196 | -10/Materials | Entered another Materials area 196 | -9/Materials | Evolved 2 slots: Utility x2 301 | -9/Materials | Build established: Mutant 312 | -9/Materials | Discovered new exit (range 10) 546 | -9/Materials | Central database locked down 650 | -9/Materials | Core integrity fell below 50% 1051 | -9/Materials | Discovered new exit (range 15) 1337 | -9/Materials | System corruption reached 10% 1344 | -9/Materials | Entered another Materials area 1344 | -8/Materials | Evolved 2 slots: Propulsion x2 1573 | -8/Materials | Core integrity fell below 50% 1597 | -8/Materials | Lost 7 parts (1p4n2u) 1806 | -8/Materials | Discovered new exit (range 9) 2591 | -8/Materials | Core integrity fell below 20% 2729 | -8/Materials | Repaired Hvy. Armor Plating 2777 | -8/Materials | Repaired Imp. Titanium Leg 2829 | -8/Materials | Repaired Imp. Titanium Leg 3086 | -8/Materials | Entered Factory 3086 | -7/Factory | Evolved 2 slots: Utility x2 3782 | -7/Factory | Garrison activated, responded to threat 4083 | -7/Factory | Build established: Gladiator 4315 | -7/Factory | Discovered new exit (range 15) 4346 | -7/Factory | Identified exit to Factory 4387 | -7/Factory | Cargo convoy interrupted 4396 | -7/Factory | Entered another Factory area 4396 | -6/Factory | Evolved 2 slots: Utility x2 4930 | -6/Factory | Discovered new exit (range 13) 5126 | -6/Factory | Identified exit to Extension 5128 | -6/Factory | Entered Extension 5635 | -6/Extension | Rescued A7 5714 | -6/Extension | Rescued a captive Derelict 5714 | -6/Extension | Rescued a captive Derelict 6102 | -6/Extension | Build established: Commander-Gladiator 6127 | -6/Extension | Spotted B-75 Beast 6136 | -6/Extension | Spotted B-75 Beast 6147 | -6/Extension | Core integrity fell below 50% 6188 | -6/Extension | Allies destroyed B-75 Beast 6193 | -6/Extension | Lost 9 parts (1p3n4u1w) 6313 | -6/Extension | Rescued a captive Derelict 6314 | -6/Extension | Rescued a captive Derelict 6319 | -6/Extension | Rescued a captive Derelict 6349 | -6/Extension | Rescued a captive Derelict 6701 | -6/Extension | Rescued a captive Derelict 6746 | -6/Extension | Rescued a captive Derelict 6783 | -6/Extension | Discovered new exit (range 10) 6785 | -6/Extension | Discovered new exit (range 6) 6811 | -6/Extension | Identified exit to Factory 6820 | -6/Extension | Identified exit to Cetus 6892 | -6/Extension | Entered Cetus 6892 | -6/Cetus | Accompanied by 18 allies (A7) 6897 | -6/Cetus | Acquired a Cetus Manufacturing Module code from A7 6916 | -6/Cetus | Spotted Cetus Guard 6916 | -6/Cetus | Spotted Cetus Guard 6919 | -6/Cetus | Spotted Cetus Guard 6919 | -6/Cetus | Spotted Cetus Guard 6942 | -6/Cetus | Allies destroyed Cetus Guard 6942 | -6/Cetus | Allies destroyed Cetus Guard 6946 | -6/Cetus | Allies destroyed Cetus Guard 6949 | -6/Cetus | Allies destroyed Cetus Guard 6958 | -6/Cetus | Lost 3 allies 7063 | -6/Cetus | Started Cetus Manufacturing Module 7088 | -6/Cetus | Manufactured an Enhanced Grunt 7113 | -6/Cetus | Manufactured an Enhanced Grunt 7138 | -6/Cetus | Manufactured an Enhanced Grunt 7163 | -6/Cetus | Manufactured an Enhanced Grunt 7188 | -6/Cetus | Manufactured an Enhanced Grunt 7221 | -6/Cetus | Discovered new exit (range 15) 7253 | -6/Cetus | Spotted Cetus Guard 7254 | -6/Cetus | Spotted Cetus Guard 7263 | -6/Cetus | Spotted Cetus Guard 7264 | -6/Cetus | Spotted Cetus Guard 7270 | -6/Cetus | Allies destroyed Cetus Guard 7275 | -6/Cetus | Discovered exit to Factory (range 16) 7279 | -6/Cetus | Allies destroyed Cetus Guard 7294 | -6/Cetus | Destroyed Cetus Guard 7297 | -6/Cetus | Allies destroyed Cetus Guard 7302 | -6/Cetus | Met Revision 17 7397 | -6/Cetus | Murdered A7 7401 | -6/Cetus | Extracted ID and sensor layout for unrecognized location from A7's data core 7405 | -6/Cetus | Found Prototype Protection 7405 | -6/Cetus | Identified Med. Regenerative Plating 7443 | -6/Cetus | Identified exit to Archives 7482 | -6/Cetus | Entered Archives 7482 | -6/Archives | Accompanied by 17 allies 7532 | -6/Archives | Discovered new exit (range 15) 7592 | -6/Archives | Discovered exit to Factory (range 14) 7687 | -6/Archives | System corruption reached 10% 7800 | -6/Archives | Discovered new exit (range 13) 8024 | -6/Archives | Identified exit to Hub_04(d) 8053 | -6/Archives | Entered Hub_04(d) 8053 | -6/Hub_04(d) | Accompanied by 15 allies 8080 | -6/Hub_04(d) | Network Hub disabled 8124 | -6/Hub_04(d) | Spotted Lightning 8154 | -6/Hub_04(d) | Spotted Lightning 8171 | -6/Hub_04(d) | Allies destroyed Lightning 8172 | -6/Hub_04(d) | Spotted Lightning 8173 | -6/Hub_04(d) | Discovered exit to Factory (range 13) 8186 | -6/Hub_04(d) | Destroyed Lightning 8192 | -6/Hub_04(d) | Found Prototype Device 8192 | -6/Hub_04(d) | Identified Exp. Phase Shifter 8195 | -6/Hub_04(d) | Found Prototype Processor 8195 | -6/Hub_04(d) | Identified Exp. Targeting Computer 8199 | -6/Hub_04(d) | Lost 10 allies 8200 | -6/Hub_04(d) | Found Prototype Device 8200 | -6/Hub_04(d) | Identified Exp. EM Shield 8223 | -6/Hub_04(d) | Core integrity fell below 20% 8247 | -6/Hub_04(d) | Network Hub disabled 8274 | -6/Hub_04(d) | Entered Factory 8274 | -5/Factory | Evolved 2 slots: Utility x2 8279 | -5/Factory | Lost 5 allies 8391 | -5/Factory | Fabricated Power Sword? 8436 | -5/Factory | Build established: Scavenger-Gladiator 8778 | -5/Factory | Crushed by falling debris 8883 | -5/Factory | Discovered new exit (range 10) 8893 | -5/Factory | Identified exit to Upper Caves 9310 | -5/Factory | Repaired Centrium Medium Armor Plating? 9317 | -5/Factory | Fabricated Power Sword (x2) 10069 | -5/Factory | Build established: Gladiator 10111 | -5/Factory | Repaired Centrium Medium Armor Plating 10451 | -5/Factory | Central database locked down 10578 | -5/Factory | Repaired Quantum Reactor 10623 | -5/Factory | Repaired Force Booster 10732 | -5/Factory | Repaired Centrium Medium Armor Plating 10938 | -5/Factory | Entered Upper Caves 11227 | -5/Upper Caves | Build established: Scavenger-Gladiator 11420 | -5/Upper Caves | Encountered a Warlord checkpoint 11421 | -5/Upper Caves | Lost 3 parts (1n2u) 11576 | -5/Upper Caves | Learned location of 1 exit from Factory 11810 | -5/Upper Caves | Discovered new exit (range 5) 11833 | -5/Upper Caves | Identified exit to Upper Caves 11835 | -5/Upper Caves | Entered another Upper Caves area 11841 | -5/Upper Caves | Encountered a Warlord checkpoint 11915 | -5/Upper Caves | Lost 3 allies 12317 | -5/Upper Caves | Discovered new exit (range 13) 12329 | -5/Upper Caves | Identified exit to Zhirov 12334 | -5/Upper Caves | Entered Zhirov 12334 | -5/Zhirov | Discovered new exit (range 3) 12354 | -5/Zhirov | Met Zhirov 12386 | -5/Zhirov | Learned location of Quarantine (-2) 12386 | -5/Zhirov | Learned location of Testing (-3) 12386 | -5/Zhirov | Learned location of Command (-1) 12397 | -5/Zhirov | Zhirov requested help retrieving the SGEMP Prototype 12415 | -5/Zhirov | Found Alien Artifact 12428 | -5/Zhirov | Found Alien Artifact 12428 | -5/Zhirov | Identified Integrated Reactor 12428 | -5/Zhirov | Installed Integrated Reactor, increased core energy generation (+10) 12562 | -5/Zhirov | Identified exit to Proximity Caves 12564 | -5/Zhirov | Entered Proximity Caves 13311 | -4/Proximity Caves | Attracted the attention of an 0b10 checkpoint 13600 | -4/Proximity Caves | System corruption reached 10% 13688 | -4/Proximity Caves | Discovered new exit (range 12) 13707 | -4/Proximity Caves | Identified exit to Factory 13708 | -4/Proximity Caves | Entered Factory 13708 | -4/Factory | Evolved 2 slots: Utility x2 13709 | -4/Factory | Identified exit to Upper Caves 13710 | -4/Factory | Identified exit to Research 14068 | -4/Factory | Discovered exit to Research (range 5) 14477 | -4/Factory | Entered Research 14477 | -3/Research | Evolved 2 slots: Utility x1, Weapon x1 14677 | -3/Research | Revision forces began assault on 0b10 14725 | -3/Research | Met up with Revision 17++ 14807 | -3/Research | Discovered new exit (range 15) 14850 | -3/Research | Identified exit to Research 14987 | -3/Research | Found Prototype Device 14989 | -3/Research | Identified Exp. Shield Generator 14991 | -3/Research | Found Prototype Processor 15037 | -3/Research | Identified exit to Testing 15076 | -3/Research | Identified Exp. Signal Interpreter 15095 | -3/Research | Found Faulty Exp. Shield Generator 15177 | -3/Research | Research terminal network offline 15245 | -3/Research | Repaired Broken Hvy. Antimatter Reactor 15297 | -3/Research | Spotted Striker 15337 | -3/Research | Lost 7 allies 15460 | -3/Research | Entered Testing 15857 | -3/Testing | Found Prototype Processor 15925 | -3/Testing | Identified Exp. Melee Analysis Suite 15966 | -3/Testing | Found Exp. Melee Analysis Suite 16005 | -3/Testing | Found Exp. Melee Analysis Suite 16059 | -3/Testing | Spotted Striker 16079 | -3/Testing | Spotted Striker 16331 | -3/Testing | Repaired Centrium Medium Armor Plating 16372 | -3/Testing | Build established: Gladiator 16440 | -3/Testing | Repaired Enh. Biometal Leg 16549 | -3/Testing | Repaired Centrium Medium Armor Plating 16685 | -3/Testing | Spotted Alpha 7 16700 | -3/Testing | Destroyed Striker 16707 | -3/Testing | Destroyed Striker 16722 | -3/Testing | Destroyed Alpha 7 16776 | -3/Testing | Stole the SGEMP Prototype 16825 | -3/Testing | Found Prototype Processor 16834 | -3/Testing | Identified Exp. Target Analyzer 16916 | -3/Testing | Found Prototype Device 16920 | -3/Testing | Identified Exp. EM Disruption Field 16993 | -3/Testing | Build established: Scavenger-Gladiator 17170 | -3/Testing | Found Prototype Hackware 17217 | -3/Testing | Identified Exp. Hacking Suite 17351 | -3/Testing | Found Prototype Launcher 17357 | -3/Testing | Identified Hellfire Missile Launcher 17357 | -3/Testing | Found Prototype Device 17388 | -3/Testing | Identified Exp. Focal Shield 17468 | -3/Testing | Found Prototype Protection 17468 | -3/Testing | Identified Lgt. Regenerative Plating 17471 | -3/Testing | Found Prototype Protection 17471 | -3/Testing | Identified Hvy. Regenerative Plating 17474 | -3/Testing | Found Prototype Protection 17474 | -3/Testing | Identified SHELL Armor 17710 | -3/Testing | First assault squad dispatched 17964 | -3/Testing | Fabricated Enh. Biometal Leg (x1) 18047 | -3/Testing | Repaired Centrium Leg 18308 | -3/Testing | Build established: Gladiator 18431 | -3/Testing | Lost 3 parts (1p2u) 18680 | -3/Testing | Build established: Scavenger-Gladiator 18879 | -3/Testing | Garrison activated, responded to threat 18959 | -3/Testing | Rewired PY-W5Q7HSQYOR 19057 | -3/Testing | Discovered exit to Research (range 16) 19071 | -3/Testing | Unchained authorized (CL-0N3) 19186 | -3/Testing | Build established: Gladiator 19193 | -3/Testing | Found Prototype Protection 19193 | -3/Testing | Identified Centrium Heavy Armor Plating 19205 | -3/Testing | System corruption reached 10% 19276 | -3/Testing | Found Prototype Device 19276 | -3/Testing | Identified Exp. Thermal Shield 19326 | -3/Testing | Entered Research 19326 | -2/Research | Evolved 2 slots: Propulsion x1, Utility x1 19486 | -2/Research | Unchained authorized (CL-0N3) 19559 | -2/Research | Spotted B-90 Cyclops 19780 | -2/Research | H-88 Terminator reconstituted as Alpha 7 19781 | -2/Research | Spotted Alpha 7 19790 | -2/Research | Destroyed Alpha 7 19790 | -2/Research | Alpha 7 reconstituted as CL-0N3 20043 | -2/Research | K-01 Serf reconstituted as Alpha 7 20043 | -2/Research | Spotted Alpha 7 20062 | -2/Research | Destroyed Alpha 7 20062 | -2/Research | Alpha 7 reconstituted as CL-0N3 20131 | -2/Research | Fabricated Enh. Biometal Leg (x1) 20320 | -2/Research | R-10 Processor reconstituted as Access Guard 20321 | -2/Research | Spotted Access Guard 20369 | -2/Research | Destroyed Access Guard 20369 | -2/Research | Access Guard reconstituted as CL-0N3 20496 | -2/Research | Found Prototype Device 20496 | -2/Research | Identified Adv. Kinecellerator 20576 | -2/Research | First assault squad dispatched 20620 | -2/Research | T-07 Excavator reconstituted as S7 Guard 20620 | -2/Research | Spotted S7 Guard 20647 | -2/Research | Destroyed S7 Guard 20647 | -2/Research | S7 Guard reconstituted as CL-0N3 20660 | -2/Research | Found Adv. Powered Armor 20894 | -2/Research | Discovered new exit (range 8) 20899 | -2/Research | Identified exit to Quarantine 20901 | -2/Research | Entered Quarantine 21009 | -2/Quarantine | Repaired Broken Nanosword 21053 | -2/Quarantine | Repaired Centrium Leg 21079 | -2/Quarantine | Found Alien Artifact 21085 | -2/Quarantine | Unchained authorized (CL-0N3) 21128 | -2/Quarantine | Identified Transdimensional Reconstructor 21151 | -2/Quarantine | First assault squad dispatched 21190 | -2/Quarantine | Warped through subspace 21355 | -2/Quarantine | System corruption reached 10% 21383 | -2/Quarantine | Lost 3 parts (3u) 21416 | -2/Quarantine | Scanned by Researcher 21429 | -2/Quarantine | Found Alien Artifact 21527 | -2/Quarantine | Identified exit to Access 21595 | -2/Quarantine | R-10 Processor reconstituted as Access Guard 21595 | -2/Quarantine | Spotted Access Guard 21639 | -2/Quarantine | Destroyed Access Guard 21639 | -2/Quarantine | Access Guard reconstituted as CL-0N3 21665 | -2/Quarantine | Lost 3 parts (1n1u1w) 21906 | -2/Quarantine | Found Alien Artifact 21906 | -2/Quarantine | Identified Phase Armor 21956 | -2/Quarantine | Build established: Scavenger-Mutant 22115 | -2/Quarantine | R-10 Processor reconstituted as V2 22115 | -2/Quarantine | Spotted V2 22135 | -2/Quarantine | Destroyed V2 22135 | -2/Quarantine | V2 reconstituted as CL-0N3 22322 | -2/Quarantine | Found Alien Reactor 22363 | -2/Quarantine | A-15 Conveyor reconstituted as Access Guard 22363 | -2/Quarantine | Spotted Access Guard 22422 | -2/Quarantine | Destroyed Access Guard 22422 | -2/Quarantine | Access Guard reconstituted as CL-0N3 22546 | -2/Quarantine | Found Adv. Powered Armor 22578 | -2/Quarantine | Found Alien Artifact 22585 | -2/Quarantine | Found Alien Artifact 22595 | -2/Quarantine | Found Alien Artifact 22627 | -2/Quarantine | Entered Access 22627 | -1/Access | Evolved 2 slots: Power x1, Propulsion x1 22629 | -1/Access | Loaded intel: 112 machine locations 22629 | -1/Access | Loaded intel: 108 trap records 22629 | -1/Access | Identified exit to Surface 22629 | -1/Access | Discovered exit to Surface (range 94) 22629 | -1/Access | Identified exit to Command 22629 | -1/Access | Discovered exit to Command (range 183) 22629 | -1/Access | Delivered the SGEMP Prototype to Zhirov 22629 | -1/Access | Zhirov transferred Access data 22638 | -1/Access | Identified Matter Drive 22648 | -1/Access | Identified Phase Redirector 22734 | -1/Access | Zhirov warped through subspace 22792 | -1/Access | Identified Subatomic Replicator 22792 | -1/Access | Identified Terrabomb (x3) 23086 | *** | Escaped! Last Messages --------------- 23035_ U-05 Engineer builds a Wall. 23036_ K-01 Serf collects debris. 23037_ U-05 Engineer builds a Door. 23038_ R-10 Processor collects Com. Wheel. 23039_ K-01 Serf collects debris. 23039_ U-05 Engineer builds a Wall. 23042_ R-10 Processor collects Adv. Dynamic Insulation System. 23042_ K-01 Serf collects debris. 23042_ U-05 Engineer lays Concrete. 23043_ U-05 Engineer builds a Door. 23048_ K-01 Serf collects debris. 23048_ U-05 Engineer lays Concrete. 23048_ U-05 Engineer builds a Wall. 23049_ R-10 Processor collects Biometal Leg. 23053_ K-01 Serf collects debris. 23060_ U-05 Engineer builds a Wall. 23081_ Main Access Shell breached. [Achievement: Leg Day] [Achievement: On My Own Terms] [Achievement: CQB] Map ----- +----------------------------------------------------+ | # ###### # ########## | | # ###### # ########## | | #####+################## # # | | # + #### # # | | # # #### # # "" | | # # #### # # "" | | + / #### # # """""" | | # # #### # # """""" | | # # #### + / "" | | # # #### # # "" | | # # #### # # | | # # " ############+##### # | | # + """ ########### # | | # # """ + # | | # # " ################## ########## | | ### ############################### ########## | | # ############################### ########## | | # ############################### ########## | | # ###################### ###### ########## | | # ##################### """ ##### ########## | | # #####################"""""##### ########## | | # ### """" " ########## | | # ### """" " ########## | | ###^^^^### """" """""" " ########## | | """" " " ########## | | """" " "@ " " ########## | | """" " "" " " ########## | | " """" " " " ########## | | """ ### """" """""" " ########## | | """ ### """" """" "" ########## | | " ### """" """"T""" ########## | | #######################"####### ########## | | ##############################" ########## | | ##############################" ########## | | " ############################# " ########## | | """ ############################# "^^########## | | """ ############################# "^^########## | | " """##########################"" # | | """############### " # | | R"############### #= # | | """############### [ !![!! | | " "" ############### *"=!! | | """ ################## ! "%!# | | """ ################## /%%+ | | " ################## #%*#= | | ################## +==# | | ################## # / | | ################## # # | | ################## # | | ######################### # ## ### | +----------------------------------------------------+ Best States ------------- Heat Dissipation 63 Energy Generation 41 Energy Capacity 350 Matter Stores 300 Matter Capacity 300 Sight Range 16 Robot Scan Range 16 Terrain Scan Range 16 Terrain Scan Density 310 ECM Strength 2 Jamming Range 16 Power Amplification 30 EM Shielding 4 Corruption Containment 8 Corruption Block 15 Armor Coverage 2125 Resistance: KI 30 Resistance: TH 30 Resistance: EM 75 Propulsion Shielding 66 Utility Shielding 33 Melee Speed Boost 50 Phase Shifting 20 Evasion (%) 82 Targeting Accuracy 6 Melee Accuracy 32 Target Analysis 10 Core Analysis 6 Armor Integrity Analysis 30 Force Boost 20 Offensive Hacking 24 Defensive Hacking 12 Authchip Count 3 Item Schematics ----------------- Aluminum Leg | -9/Materials | Scanalyzed Structural Scanner | -9/Materials | Scanalyzed Hvy. Hammer | -9/Materials | Scanalyzed Exp. Power Shielding | -7/Factory | Downloaded Power Sword | -6/Hub_04(d) | Hacked Enh. Biometal Leg | -5/Factory | Scanalyzed Assault Drone Bay | -5/Zhirov | Free Exp. Heat Sink | -5/Zhirov | Free Exp. Optical Array | -5/Zhirov | Free Imp. Arc Thrower | -5/Zhirov | Free Thunder Hammer | -4/Factory | Scanalyzed Centrium Medium Armor Plating | -4/Factory | Scanalyzed Hvy. Antimatter Reactor | -4/Factory | Scanalyzed Imp. Corruption Screen | -4/Factory | Scanalyzed Exp. EM Disruption Field | -3/Testing | Archive Fusion Reactor | -3/Testing | Archive Hds. Centrium Leg | -2/Research | Scanalyzed Nanosword | -2/Research | Scanalyzed Hvy. Proton Cannon | -2/Quarantine | Archive Plasma Sword | -2/Quarantine | Archive Gui. Micro-nuke Launcher | -2/Quarantine | Archive Robot Schematics ------------------ R-10 Processor | -3/Testing | Archive Fabricated ------------ Power Sword | x2 | -5/Factory | Authchip Power Sword | x2 | -5/Factory Enh. Biometal Leg | x1 | -3/Testing | Authchip Enh. Biometal Leg | x1 | -2/Research Repaired ---------- Hvy. Armor Plating | 26% | -8/Materials Imp. Titanium Leg | 47% | -8/Materials Imp. Titanium Leg | 57% | -8/Materials Centrium Medium Armor Plating | 34% | -5/Factory Centrium Medium Armor Plating | 34% | -5/Factory Quantum Reactor | 7% | -5/Factory Force Booster | 7% | -5/Factory Centrium Medium Armor Plating | 39% | -5/Factory Hvy. Antimatter Reactor | 63% | -3/Research | Broken Centrium Medium Armor Plating | 8% | -3/Testing Enh. Biometal Leg | 27% | -3/Testing Centrium Medium Armor Plating | 10% | -3/Testing Centrium Leg | 48% | -3/Testing Nanosword | 99% | -2/Quarantine | Broken Centrium Leg | 12% | -2/Quarantine Studied --------- None Alien Tech Used ----------------- Integrated Reactor Transdimensional Reconstructor Phase Armor Matter Drive Achievements -------------- CQB Gladiator Leg Day On My Own Terms Shocking Conclusion Special Delivery Challenges ------------ None Game ------ Seed BombCobblerMapper Manual? 0 Play Time 05:40:50 Cumulative 295.4 hours Start 2025.11.18 @ 11:26:10 End 2025.11.18 @ 18:35:11 Sessions 3 Manual Loads 0 Difficulty Rogue Special Mode None Game No. 309 Rogue 305 Adventurer 3 Explorer 1 Win Type 0 Total 2 Types 2/0/0/0/0/0/0/0/0/0 Lore% 79 Gallery% 76 Achievement% 62 Wizard Run 0 Options --------- Layout 0 ASCII 0 Keyboard 0 Movement Mouse Keybinds 0 Fullscreen 2 Font 18/SmallcapsGlow Map View 76x50 Zoom Use 0% Tactical HUD 1 Map Filters NONE Filters NONE Steam 1 RUN: a502b649-22d0-4368-a3a0-c9b85a51b581